[Event "TUR-chT Superleague 2018"]
[Site "Ankara"]
[Date "2018.07.25"]
[Round "1"]
[White "Onbasi, Irem"]
[Black "Ayan, Bengu Sena"]
[Result "1/2-1/2"]
[ECO "D04"]
[WhiteElo "1427"]
[BlackElo "1787"]
[Annotator "NA"]
[PlyCount "105"]
[EventDate "2018.07.25"]
[EventType "team-tourn"]
[EventCountry "TUR"]
[SourceTitle "playchess.com"]
[Source "ChessBase"]
[SourceQuality "1"]
[TimeControl "40/5400+30:1800+30"]

1. d4 {[%emt 0:00:30]} d5 {[%emt 0:00:30]} 2. Nf3 {[%emt 0:00:30]} Nf6 {[%emt 0:00:30]} 3. e3 {[%emt 0:00:00]} a6 {[%emt 0:02:30]} 4. Bd3 {[%emt 0:00:00]} Bg4 {[%emt 0:03:30]} 5. h3 {[%emt 0:02:30]} Bh5 {[%emt 0:03:30]} 6. O-O {[%emt 0:05:30]} e6 {[%emt 0:03:30]} 7. c4 {[%emt 0:04:30]} c6 {[%emt 0:04:30]} 8. Nc3 {[%emt 0:05:30]} Be7 {[%emt 0:05:30]} 9. Re1 {[%emt 0:04:30]} b5 {[%emt 0:07:30]} 10. b3 {[%emt 0:18:30]} O-O {[%emt 0:12:30]} 11. e4 {[%emt 0:13:30]} dxe4 {[%emt 0:03:30]} 12. Bxe4 {[%emt 0:01:30]} Nxe4 {[%emt 0:03:30]} 13. Nxe4 {[%emt 0:00:30]} Nd7 {[%emt 0:04:30]} 14. Bb2 {[%emt 0:08:30]} Nf6 {[%emt 0:09:30]} 15. Ng3 {[%emt 0:02:30]} Bg6 {[%emt 0:06:30]} 16. Ne5 {[%emt 0:04:30]} Rc8 {[%emt 0:02:30]} 17. Qf3 {[%emt 0:07:27]} Qb6 {[%emt 0:05:16]} 18. Rac1 {[%emt 0:06:29]} Rfe8 {[%emt 0:07:00]} 19. Bc3 {[%emt 0:10:43]} Red8 {[%emt 0:06:33]} 20. h4 {[%emt 0:01:31]} bxc4 {[%emt 0:03:03]} 21. Nxc4 {[%emt 0:00:35]} Qb5 {[%emt 0:01:39]} 22. Re5 {[%emt 0:00:31]} Rd5 {[%emt 0:02:10]} 23. h5 {[%emt 0:00:24]} Nd7 {[%emt 0:00:07]} 24. Rxd5 {[%emt 0:00:38]} cxd5 {[%emt 0:00:17]} 25. hxg6 {[%emt 0:00:00]} hxg6 {[%emt 0:00:51]} 26. Ne5 {[%emt 0:00:29]} Nxe5 {[%emt 0:00:30]} 27. dxe5 {[%emt 0:00:02]} d4 {[%emt 0:01:19]} 28. Bd2 {[%emt 0:00:45]} Rxc1+ {[%emt 0:00:47]} 29. Bxc1 {[%emt 0:00:03]} d3 {[%emt 0:00:15]} 30. Qe3 {[%emt 0:01:25]} Bc5 {[%emt 0:00:24]} 31. Qd2 {[%emt 0:00:10]} Bb4 {[%emt 0:00:17]} 32. Qe3 {[%emt 0:00:10]} Bc5 {[%emt 0:00:45]} 33. Qe4 {[%emt 0:01:05]} Qb6 {[%emt 0:00:37]} 34. Qf3 {[%emt 0:01:09]} Qd8 {[%emt 0:00:06]} 35. Bd2 {[%emt 0:00:28]} Qd4 {[%emt 0:00:24]} 36. Ne4 {[%emt 0:00:19]} Qa1+ {[%emt 0:01:00]} 37. Kh2 {[%emt 0:00:04]} Qxe5+ {[%emt 0:00:05]} 38. Bf4 {[%emt 0:00:34]} Qd5 {[%emt 0:01:00]} 39. Nxc5 {[%emt 0:00:30]} Qxc5 {[%emt 0:00:00]} 40. Qxd3 {[%emt 0:01:01]} Qxf2 {[%emt 0:00:00]} 41. Bd2 {[%emt 0:08:58]} Qh4+ {[%emt 0:03:05]} 42. Kg1 {[%emt 0:00:00]} Qf6 {[%emt 0:04:30]} 43. Bc3 {[%emt 0:02:00]} Qf4 {[%emt 0:00:30]} 44. Bb2 {[%emt 0:01:30]} Qg5 {[%emt 0:03:30]} 45. Qc3 {[%emt 0:03:51]} Qh6 {[%emt 0:01:30]} 46. Qc8+ {[%emt 0:01:14]} Kh7 {[%emt 0:00:30]} 47. Bc1 {[%emt 0:00:09]} Qh5 {[%emt 0:01:45]} 48. Qc2 {[%emt 0:01:21]} Qe5 {[%emt 0:01:00]} 49. Qd2 {[%emt 0:03:12]} Qc5+ {[%emt 0:00:52]} 50. Kh1 {[%emt 0:02:13]} Qh5+ {[%emt 0:00:57]} 51. Kg1 {[%emt 0:00:30]} Qc5+ {[%emt 0:00:00]} 52. Kh1 {[%emt 0:04:15]} Qh5+ {[%emt 0:00:20]} 53. Kg1 {[%emt 0:00:21]} 1/2-1/2

[Event "TUR-chT Superleague 2018"]
[Site "Ankara"]
[Date "2018.07.26"]
[Round "2"]
[White "Abasov, Nijat"]
[Black "Zhigalko, Sergei"]
[Result "1-0"]
[ECO "B51"]
[WhiteElo "2623"]
[BlackElo "2616"]
[Annotator "ChessBase"]
[PlyCount "110"]
[EventDate "2018.07.25"]
[EventType "team-tourn"]
[EventCountry "TUR"]
[SourceTitle "playchess.com"]
[Source "ChessBase"]
[SourceQuality "1"]
[TimeControl "40/5400+30:1800+30"]

1. e4 {[%emt 0:00:30]} c5 {[%emt 0:01:00]} 2. Nf3 {[%emt 0:00:30]} Nc6 {[%emt 0:00:30]} 3. Bb5 {[%emt 0:00:00]} d6 {[%emt 0:02:30]} 4. O-O {[%emt 0:01:00]} Bd7 {[%emt 0:00:30]} 5. Re1 {[%emt 0:02:30]} Nf6 {[%emt 0:01:30]} 6. c3 {[%emt 0:00:30]} a6 {[%emt 0:00:30]} 7. Bf1 {[%emt 0:02:30]} Bg4 {[%emt 0:01:30]} 8. h3 {[%emt 0:00:30]} Bxf3 {[%emt 0:00:30]} 9. Qxf3 {[%emt 0:00:00]} e6 {[%emt 0:00:30]} 10. Na3 {[%emt 0:10:00]} Rc8 {[%emt 0:36:30]} 11. Nc2 {[%emt 0:04:30]} d5 {[%emt 0:02:30]} 12. exd5 {[%emt 0:04:30]} Nxd5 {[%emt 0:09:30]} 13. Rd1 {[%emt 0:06:30]} g6 {[%emt 0:15:30]} 14. d4 {[%emt 0:01:30]} cxd4 {[%emt 0:00:30]} 15. Nxd4 {[%emt 0:00:30]} Nxd4 {[%emt 0:00:30]} 16. Rxd4 {[%emt 0:00:00]} Bg7 {[%emt 0:00:00]} 17. Rd1 {[%emt 0:05:00]} Qe7 {[%emt 0:01:00]} 18. Qe4 {[%emt 0:20:30]} Rc7 {[%emt 0:00:30]} 19. Bc4 {[%emt 0:04:30]} Nf6 {[%emt 0:02:30]} 20. Qe2 {[%emt 0:00:30]} O-O {[%emt 0:01:30]} 21. Bf4 {[%emt 0:00:30]} e5 {[%emt 0:00:30]} 22. Be3 {[%emt 0:00:00]} Nh5 {[%emt 0:01:30]} 23. Bb3 {[%emt 0:01:00]} Kh8 {[%emt 0:10:37]} 24. Qd2 {[%emt 0:01:30]} Rfc8 {[%emt 0:06:06]} 25. Bb6 {[%emt 0:02:30]} Rc6 {[%emt 0:00:02]} 26. Bd8 {[%emt 0:00:30]} Qf8 {[%emt 0:01:27]} 27. Qd7 {[%emt 0:00:30]} b5 {[%emt 0:00:19]} 28. Bd5 {[%emt 0:07:30]} Nf6 {[%emt 0:00:35]} 29. Qxf7 {[%emt 0:00:00]} Nxd5 {[%emt 0:00:25]} 30. Qxf8+ {[%emt 0:01:00]} Bxf8 {[%emt 0:00:02]} 31. Rxd5 {[%emt 0:00:30]} b4 {[%emt 0:02:30]} 32. Ba5 {[%emt 0:00:30]} e4 {[%emt 0:00:56]} 33. Rad1 {[%emt 0:05:28]} bxc3 {[%emt 0:01:56]} 34. Bxc3+ {[%emt 0:00:30]} Kg8 {[%emt 0:00:00]} 35. Kf1 {[%emt 0:00:40]} Be7 {[%emt 0:00:00]} 36. Ke2 {[%emt 0:02:47]} h5 {[%emt 0:00:32]} 37. Ke3 {[%emt 0:01:09]} Rc4 {[%emt 0:00:27]} 38. Bd4 {[%emt 0:01:31]} Ra4 {[%emt 0:00:03]} 39. a3 {[%emt 0:00:43]} Rc2 {[%emt 0:00:29]} 40. Rd2 {[%emt 0:00:00]} Rc1 {[%emt 0:02:34]} 41. Kxe4 {[%emt 0:02:42]} h4 {[%emt 0:00:00]} 42. Kf3 {[%emt 0:01:30]} Kf7 {[%emt 0:01:00]} 43. Re2 {[%emt 0:00:30]} Rc7 {[%emt 0:01:30]} 44. Re4 {[%emt 0:01:30]} Rac4 {[%emt 0:00:30]} 45. Be5 {[%emt 0:01:30]} Rxe4 {[%emt 0:00:30]} 46. Kxe4 {[%emt 0:00:30]} Rc2 {[%emt 0:00:30]} 47. Bd4 {[%emt 0:01:30]} Bf6 {[%emt 0:00:30]} 48. Kd3 {[%emt 0:00:30]} Rc1 {[%emt 0:00:30]} 49. Bxf6 {[%emt 0:00:30]} Kxf6 {[%emt 0:00:00]} 50. Ke3 {[%emt 0:06:30]} Rb1 {[%emt 0:04:00]} 51. b4 {[%emt 0:01:30]} Re1+ {[%emt 0:02:30]} 52. Kf3 {[%emt 0:00:30]} Re6 {[%emt 0:00:00]} 53. Kg4 {[%emt 0:02:30]} Re2 {[%emt 0:02:00]} 54. Rd6+ {[%emt 0:01:30]} Ke5 {[%emt 0:00:30]} 55. Rxg6 {[%emt 0:00:30]} Kd5 {[%emt 0:00:30]} 1-0

[Event "TUR-chT Superleague 2018"]
[Site "Ankara"]
[Date "2018.07.26"]
[Round "2"]
[White "Kevlishvili, Robby"]
[Black "Gulbeyaz, Emir"]
[Result "1-0"]
[ECO "B04"]
[WhiteElo "2502"]
[BlackElo "2074"]
[Annotator "ChessBase"]
[PlyCount "85"]
[EventDate "2018.07.25"]
[EventType "team-tourn"]
[EventCountry "TUR"]
[SourceTitle "playchess.com"]
[Source "ChessBase"]
[SourceQuality "1"]
[TimeControl "40/5400+30:1800+30"]

1. e4 {[%emt 0:00:30]} g6 {[%emt 0:01:00]} 2. d4 {[%emt 0:00:30]} Bg7 {[%emt 0:00:30]} 3. Nf3 {[%emt 0:00:30]} d6 {[%emt 0:00:30]} 4. Bc4 {[%emt 0:00:00]} Nf6 {[%emt 0:00:00]} 5. Qe2 {[%emt 0:00:00]} O-O {[%emt 0:00:00]} 6. e5 {[%emt 0:00:00]} dxe5 {[%emt 0:00:30]} 7. dxe5 {[%emt 0:00:00]} Nd5 {[%emt 0:00:30]} 8. h3 {[%emt 0:00:00]} c6 {[%emt 0:00:00]} 9. O-O {[%emt 0:00:00]} e6 {[%emt 0:02:00]} 10. Bb3 {[%emt 0:00:30]} b5 {[%emt 0:01:30]} 11. a4 {[%emt 0:05:30]} bxa4 {[%emt 0:04:30]} 12. Rxa4 {[%emt 0:01:30]} Nd7 {[%emt 0:00:30]} 13. Ra1 {[%emt 0:00:30]} Qc7 {[%emt 0:00:30]} 14. Re1 {[%emt 0:00:30]} Bb7 {[%emt 0:02:30]} 15. Na3 {[%emt 0:11:30]} N5b6 {[%emt 0:13:30]} 16. Bf4 {[%emt 0:04:30]} c5 {[%emt 0:04:30]} 17. Nb5 {[%emt 0:01:30]} Qb8 {[%emt 0:00:00]} 18. Nd2 {[%emt 0:13:30]} Bc6 {[%emt 0:02:00]} 19. Nd6 {[%emt 0:00:30]} Nc8 {[%emt 0:08:30]} 20. N2c4 {[%emt 0:02:30]} Nxd6 {[%emt 0:00:30]} 21. Nxd6 {[%emt 0:12:30]} a5 {[%emt 0:05:30]} 22. Rab1 {[%emt 0:00:30]} Nb6 {[%emt 0:01:30]} 23. Qe3 {[%emt 0:07:30]} a4 {[%emt 0:01:30]} 24. Ba2 {[%emt 0:00:30]} Ra5 {[%emt 0:01:30]} 25. Qc3 {[%emt 0:00:30]} Qa8 {[%emt 0:00:30]} 26. Bd2 {[%emt 0:00:30]} Ra7 {[%emt 0:01:30]} 27. f3 {[%emt 0:04:30]} Nd7 {[%emt 0:00:30]} 28. Nc4 {[%emt 0:02:30]} Bd5 {[%emt 0:00:30]} 29. Ra1 {[%emt 0:01:30]} Qb8 {[%emt 0:01:30]} 30. f4 {[%emt 0:01:30]} f6 {[%emt 0:00:00]} 31. Qe3 {[%emt 0:05:30]} fxe5 {[%emt 0:03:00]} 32. fxe5 {[%emt 0:00:00]} Rf5 {[%emt 0:02:30]} 33. Bc3 {[%emt 0:01:00]} Qf8 {[%emt 0:00:30]} 34. Qg3 {[%emt 0:03:30]} Qe7 {[%emt 0:06:30]} 35. Ne3 {[%emt 0:00:30]} Rg5 {[%emt 0:02:30]} 36. Nxd5 {[%emt 0:00:30]} exd5 {[%emt 0:00:30]} 37. Bxd5+ {[%emt 0:00:30]} Kh8 {[%emt 0:00:00]} 38. Qf4 {[%emt 0:01:30]} Rf5 {[%emt 0:02:00]} 39. Qe4 {[%emt 0:00:30]} Nxe5 {[%emt 0:01:30]} 40. Rxa4 {[%emt 0:00:00]} Rxa4 {[%emt 0:30:30]} 41. Qxa4 {[%emt 0:03:00]} Qd6 {[%emt 0:00:00]} 42. Qe8+ {[%emt 0:00:30]} Rf8 {[%emt 0:00:00]} 43. Qxe5 {[%emt 0:00:30]} 1-0

[Event "TUR-chT Superleague 2018"]
[Site "Ankara"]
[Date "2018.07.26"]
[Round "2"]
[White "Yilmazyerli, Mert"]
[Black "Bolat, Ahmet"]
[Result "1-0"]
[ECO "B30"]
[WhiteElo "2491"]
[BlackElo "2124"]
[Annotator "ChessBase"]
[PlyCount "57"]
[EventDate "2018.07.25"]
[EventType "team-tourn"]
[EventCountry "TUR"]
[SourceTitle "playchess.com"]
[Source "ChessBase"]
[SourceQuality "1"]
[TimeControl "40/5400+30:1800+30"]

1. e4 {[%emt 0:00:30]} c5 {[%emt 0:01:00]} 2. Nf3 {[%emt 0:00:30]} Nc6 {[%emt 0:00:00]} 3. Nc3 {[%emt 0:00:30]} Nf6 {[%emt 0:02:00]} 4. Bb5 {[%emt 0:07:30]} Nd4 {[%emt 0:00:30]} 5. e5 {[%emt 0:02:30]} Nxb5 {[%emt 0:05:30]} 6. Nxb5 {[%emt 0:04:30]} Nd5 {[%emt 0:00:30]} 7. Ng5 {[%emt 0:00:30]} f6 {[%emt 0:23:30]} 8. Qf3 {[%emt 0:05:30]} Nc7 {[%emt 0:19:30]} 9. exf6 {[%emt 0:04:30]} exf6 {[%emt 0:01:30]} 10. Qe4+ {[%emt 0:14:30]} Ne6 {[%emt 0:01:30]} 11. Nxh7 {[%emt 0:03:30]} f5 {[%emt 0:11:30]} 12. Qxf5 {[%emt 0:01:30]} Qh4 {[%emt 0:00:00]} 13. Nxf8 {[%emt 0:06:30]} Rxf8 {[%emt 0:01:00]} 14. Qg6+ {[%emt 0:00:30]} Kd8 {[%emt 0:00:30]} 15. Qg3 {[%emt 0:06:30]} Qa4 {[%emt 0:09:30]} 16. Nc3 {[%emt 0:02:30]} Qxc2 {[%emt 0:00:30]} 17. d3 {[%emt 0:02:30]} b6 {[%emt 0:03:56]} 18. Bg5+ {[%emt 0:07:30]} Ke8 {[%emt 0:02:17]} 19. O-O {[%emt 0:03:30]} Qxb2 {[%emt 0:03:42]} 20. Ne4 {[%emt 0:03:30]} Kf7 {[%emt 0:00:41]} 21. Bd2 {[%emt 0:05:38]} Ba6 {[%emt 0:01:44]} 22. Bc3 {[%emt 0:02:30]} Qc2 {[%emt 0:01:49]} 23. Rad1 {[%emt 0:01:23]} d5 {[%emt 0:02:33]} 24. Nd6+ {[%emt 0:02:49]} Kg8 {[%emt 0:03:09]} 25. Qe5 {[%emt 0:00:24]} Nd4 {[%emt 0:02:14]} 26. Bxd4 {[%emt 0:01:05]} cxd4 {[%emt 0:00:06]} 27. Qxd5+ {[%emt 0:01:19]} Kh7 {[%emt 0:00:17]} 28. Qe4+ {[%emt 0:02:48]} Kh8 {[%emt 0:01:29]} 29. Nf7+ {[%emt 0:01:38]} 1-0

[Event "TUR-chT Superleague 2018"]
[Site "Ankara"]
[Date "2018.07.26"]
[Round "2"]
[White "Sadikhov, Ulvi"]
[Black "Kerigan, Demre"]
[Result "1-0"]
[ECO "B07"]
[WhiteElo "2484"]
[BlackElo "2366"]
[Annotator "ChessBase"]
[PlyCount "41"]
[EventDate "2018.07.25"]
[EventType "team-tourn"]
[EventCountry "TUR"]
[SourceTitle "playchess.com"]
[Source "ChessBase"]
[SourceQuality "1"]
[TimeControl "40/5400+30:1800+30"]

1. e4 {[%emt 0:00:30]} d6 {[%emt 0:01:00]} 2. d4 {[%emt 0:00:30]} Nf6 {[%emt 0:00:30]} 3. Nc3 {[%emt 0:00:00]} e5 {[%emt 0:00:00]} 4. dxe5 {[%emt 0:01:00]} dxe5 {[%emt 0:00:00]} 5. Qxd8+ {[%emt 0:00:30]} Kxd8 {[%emt 0:00:30]} 6. Bg5 {[%emt 0:00:00]} Be6 {[%emt 0:00:30]} 7. O-O-O+ {[%emt 0:00:00]} Kc8 {[%emt 0:00:30]} 8. Nf3 {[%emt 0:06:30]} Nbd7 {[%emt 0:01:30]} 9. a3 {[%emt 0:00:30]} Ng4 {[%emt 0:07:30]} 10. Bh4 {[%emt 0:02:30]} Bc5 {[%emt 0:03:30]} 11. Rd2 {[%emt 0:01:30]} f6 {[%emt 0:00:30]} 12. h3 {[%emt 0:03:30]} Nh6 {[%emt 0:02:30]} 13. Be2 {[%emt 0:19:30]} Nf7 {[%emt 0:03:30]} 14. Rhd1 {[%emt 0:02:30]} c6 {[%emt 0:09:30]} 15. g4 {[%emt 0:11:30]} h5 {[%emt 0:15:30]} 16. gxh5 {[%emt 0:03:30]} Rxh5 {[%emt 0:08:30]} 17. Na4 {[%emt 0:02:30]} Rxh4 {[%emt 0:13:30]} 18. Rxd7 {[%emt 0:00:30]} Bxf2 {[%emt 0:08:30]} 19. Re7 {[%emt 0:00:30]} Nd8 {[%emt 0:05:27]} 20. Nxh4 {[%emt 0:01:30]} Bxh4 {[%emt 0:00:25]} 21. Rxe6 {[%emt 0:00:30]} 1-0

[Event "TUR-chT Superleague 2018"]
[Site "Ankara"]
[Date "2018.07.26"]
[Round "2"]
[White "Soysal, Serkan"]
[Black "Kizilkaya, Mehmet"]
[Result "1-0"]
[ECO "E16"]
[WhiteElo "2406"]
[BlackElo "2205"]
[Annotator "NA"]
[PlyCount "121"]
[EventDate "2018.07.25"]
[EventType "team-tourn"]
[EventCountry "TUR"]
[SourceTitle "playchess.com"]
[Source "ChessBase"]
[SourceQuality "1"]
[TimeControl "40/5400+30:1800+30"]

1. d4 Nf6 2. c4 e6 3. Nf3 Bb4+ 4. Bd2 Qe7 5. Nc3 b6 6. g3 Bb7 7. Bg2 O-O 8. O-O d6 9. Rc1 Nbd7 10. a3 Bxc3 11. Bxc3 Ne4 12. Re1 f5 13. b4 Ndf6 14. Bb2 Qf7 15. d5 e5 16. Rf1 Qh5 17. e3 Bc8 18. Nd2 Nxd2 19. Qxd2 f4 20. exf4 exf4 21. f3 fxg3 22. hxg3 Bh3 23. Rce1 Bxg2 24. Kxg2 Rae8 25. Rxe8 Rxe8 26. Re1 Rxe1 27. Qxe1 Qf5 28. Qe2 h6 29. g4 Qf4 30. Qe6+ Kh7 31. Bxf6 gxf6 32. Qf7+ Kh8 33. Qf8+ Kh7 34. Qf7+ Kh8 35. Qxc7 Qd2+ 36. Kh3 Qf4 37. Qd8+ Kg7 38. Qe7+ Kg8 39. Qe8+ Kg7 40. Qe7+ Kg8 41. Qe4 Qc1 42. Qg6+ Kh8 43. Qxf6+ Kh7 44. Qf5+ Kg7 45. Qd7+ Kg8 46. Qd8+ Kg7 47. Qc7+ Kg8 48. Qb8+ Kg7 49. Qxa7+ Kf6 50. Qxb6 Ke5 51. Qf2 {[%emt 2:11:34]} Qxc4 {[%emt 2:13:03]} 52. Qe3+ {[%emt 0:00:30]} Kf6 {[%emt 0:01:04]} 53. Qxh6+ {[%emt 0:01:13]} Kf7 {[%emt 0:00:04]} 54. Kg3 {[%emt 0:00:20]} Qc3 {[%emt 0:02:20]} 55. Qe6+ {[%emt 0:01:15]} Kg7 {[%emt 0:00:03]} 56. g5 {[%emt 0:03:16]} Qc1 {[%emt 0:01:40]} 57. Kg4 {[%emt 0:01:40]} Qg1+ {[%emt 0:02:34]} 58. Kf5 {[%emt 0:00:09]} Qg3 {[%emt 0:00:02]} 59. Qf6+ {[%emt 0:00:12]} Kh7 {[%emt 0:00:42]} 60. g6+ {[%emt 0:02:15]} Kh6 {[%emt 0:00:49]} 61. Qh8# {[%emt 0:00:30]} 1-0

[Event "TUR-chT Superleague 2018"]
[Site "Ankara"]
[Date "2018.07.26"]
[Round "2"]
[White "Yurtseven, Melih"]
[Black "Korkmaz, Necmettin"]
[Result "0-1"]
[ECO "D11"]
[WhiteElo "2404"]
[BlackElo "2056"]
[Annotator "NA"]
[PlyCount "136"]
[EventDate "2018.07.25"]
[EventType "team-tourn"]
[EventCountry "TUR"]
[SourceTitle "playchess.com"]
[Source "ChessBase"]
[SourceQuality "1"]
[TimeControl "40/5400+30:1800+30"]

1. Nf3 d5 2. d4 Nf6 3. g3 Bf5 4. Bg2 e6 5. O-O Be7 6. c4 c6 7. Nc3 Ne4 8. Re1 Nxc3 9. bxc3 Be4 10. Qb3 Qb6 11. c5 Qxb3 12. axb3 Nd7 13. Ra2 O-O 14. Bf4 Rfe8 15. Rea1 a6 16. g4 h6 17. Bg3 Bf6 18. Nd2 Bxg2 19. Kxg2 e5 20. e3 exd4 21. cxd4 Nf8 22. b4 Rac8 23. Nb3 Bd8 24. Na5 Re7 25. Bd6 Rd7 26. Bxf8 Kxf8 27. Rh1 Bxa5 28. bxa5 Re8 29. Rb2 Ree7 30. Rb3 Ke8 31. Kf3 Kf8 32. Rg1 g5 33. Rgb1 Kg7 34. Ke2 Kg6 35. h3 f5 36. f3 h5 37. Rg1 fxg4 38. hxg4 h4 39. Kf2 Rf7 40. Rgb1 Rde7 41. R1b2 Rh7 42. Kg2 Ref7 43. Rf2 Rf6 44. f4 Re7 45. Rf3 {[%emt 2:12:52]} Rff7 {[%emt 2:11:45]} 46. Rb2 {[%emt 0:04:26]} Re4 {[%emt 0:02:38]} 47. Rbf2 {[%emt 0:00:56]} Rfe7 {[%emt 0:00:35]} 48. Rb2 {[%emt 0:03:04]} Rxe3 {[%emt 0:02:20]} 49. Rxe3 {[%emt 0:02:37]} Rxe3 {[%emt 0:00:30]} 50. f5+ {[%emt 0:00:30]} Kf6 {[%emt 0:00:30]} 51. Kh2 {[%emt 0:00:34]} Re4 {[%emt 0:00:42]} 52. Rxb7 {[%emt 0:00:52]} Rxg4 {[%emt 0:00:30]} 53. Rb6 {[%emt 0:00:00]} Rxd4 {[%emt 0:00:00]} 54. Rxa6 {[%emt 0:00:16]} g4 {[%emt 0:00:15]} 55. Rxc6+ {[%emt 0:00:30]} Kxf5 {[%emt 0:00:00]} 56. a6 {[%emt 0:00:47]} Rd2+ {[%emt 0:00:51]} 57. Kg1 {[%emt 0:00:12]} g3 {[%emt 0:01:50]} 58. Rh6 {[%emt 0:00:51]} Kg4 {[%emt 0:00:23]} 59. a7 {[%emt 0:00:26]} Ra2 {[%emt 0:00:35]} 60. Rh7 {[%emt 0:00:17]} h3 {[%emt 0:00:14]} 61. Rg7+ {[%emt 0:00:04]} Kf4 {[%emt 0:00:28]} 62. Rf7+ {[%emt 0:00:08]} Ke5 {[%emt 0:00:11]} 63. Re7+ {[%emt 0:00:47]} Kf6 {[%emt 0:00:59]} 64. Re1 {[%emt 0:00:08]} Rxa7 {[%emt 0:00:53]} 65. c6 {[%emt 0:00:01]} d4 {[%emt 0:00:04]} 66. Kh1 {[%emt 0:00:43]} d3 {[%emt 0:00:31]} 67. Rg1 {[%emt 0:00:44]} d2 {[%emt 0:00:11]} 68. Rd1 {[%emt 0:00:34]} Ra6 {[%emt 0:00:26]} 0-1

[Event "TUR-chT Superleague 2018"]
[Site "Ankara"]
[Date "2018.07.26"]
[Round "2"]
[White "Can, Isik"]
[Black "Tarlabasi, Emirhan"]
[Result "1/2-1/2"]
[ECO "C18"]
[WhiteElo "2385"]
[BlackElo "2117"]
[Annotator "NA"]
[PlyCount "122"]
[EventDate "2018.07.25"]
[EventType "team-tourn"]
[EventCountry "TUR"]
[SourceTitle "playchess.com"]
[Source "ChessBase"]
[SourceQuality "1"]
[TimeControl "40/5400+30:1800+30"]

1. e4 e6 2. d4 d5 3. Nc3 Bb4 4. e5 c5 5. a3 Bxc3+ 6. bxc3 Nc6 7. Qg4 g6 8. Nf3 Qa5 9. Bd2 Qa4 10. Be2 Bd7 11. O-O c4 12. Ra2 O-O-O 13. Bg5 Rf8 14. Qh4 h6 15. Rb1 Rh7 16. h3 Rg7 17. Bxh6 Rh7 18. Bxf8 Rxh4 19. Nxh4 Nce7 20. Nf3 Qa5 21. a4 Qd8 22. Bxe7 Qxe7 23. a5 a6 24. g4 Kc7 25. Kg2 Be8 26. Raa1 f5 27. Rh1 g5 28. gxf5 exf5 29. Rag1 Nh6 30. Kf1 Nf7 31. Ke1 Bd7 32. Kd2 g4 33. hxg4 fxg4 34. Ne1 Ng5 35. Bxg4 Ne4+ 36. Ke3 Qa3 37. Bxd7 Qxc3+ 38. Kf4 Qd2+ 39. Kf5 Kxd7 40. f4 Qf2 41. Rg2 Qe3 42. Rh7+ Kc6 43. Rg6+ Kb5 44. Ng2 Qxd4 45. Rxb7+ Kxa5 46. Re7 {[%emt 2:19:34]} Qf2 {[%emt 2:05:43]} 47. Ke6 {[%emt 0:00:58]} d4 {[%emt 0:05:08]} 48. Kf7 {[%emt 0:02:29]} Ng3 {[%emt 0:06:59]} 49. Ra7 {[%emt 0:00:56]} Qxg2 {[%emt 0:01:16]} 50. e6 {[%emt 0:00:08]} d3 {[%emt 0:04:30]} 51. Rg5+ {[%emt 0:00:51]} Kb6 {[%emt 0:01:21]} 52. e7 {[%emt 0:00:10]} Qe4 {[%emt 0:01:00]} 53. e8=Q {[%emt 0:00:50]} Qxe8+ {[%emt 0:00:41]} 54. Kxe8 {[%emt 0:00:02]} dxc2 {[%emt 0:00:05]} 55. Re7 {[%emt 0:01:00]} c1=Q {[%emt 0:00:39]} 56. Re6+ {[%emt 0:00:22]} Kc7 {[%emt 0:00:35]} 57. Rg7+ {[%emt 0:00:29]} Kb8 {[%emt 0:00:31]} 58. Rb6+ {[%emt 0:00:57]} Kc8 {[%emt 0:00:18]} 59. Rc6+ {[%emt 0:00:13]} Kb8 {[%emt 0:00:02]} 60. Rb6+ {[%emt 0:00:26]} Kc8 {[%emt 0:00:02]} 61. Rc6+ {[%emt 0:00:32]} Kb8 {[%emt 0:00:02]} 1/2-1/2

[Event "TUR-chT Superleague 2018"]
[Site "Ankara"]
[Date "2018.07.26"]
[Round "2"]
[White "Koksal, Ege"]
[Black "Tukhaev, Adam"]
[Result "0-1"]
[ECO "A49"]
[WhiteElo "2378"]
[BlackElo "2542"]
[Annotator "ChessBase"]
[PlyCount "128"]
[EventDate "2018.07.25"]
[EventType "team-tourn"]
[EventCountry "TUR"]
[SourceTitle "playchess.com"]
[Source "ChessBase"]
[SourceQuality "1"]
[TimeControl "40/5400+30:1800+30"]

1. d4 Nf6 2. Nf3 g6 3. g3 Bg7 4. Bg2 c5 5. c3 Qa5 6. O-O O-O 7. Be3 Ng4 8. Bg5 Re8 9. h3 h6 10. Bf4 Nf6 11. Nbd2 d6 12. Nb3 Qb6 13. dxc5 dxc5 14. Qc1 Kh7 15. Be3 Na6 16. Ne5 Qc7 17. Nc4 Be6 18. Ncd2 Nd5 19. Nf3 Nxe3 20. Qxe3 Rad8 21. Rfd1 b6 22. Rd3 Bf5 23. Rd2 Rxd2 24. Nbxd2 e5 25. Nf1 Be6 26. Qd3 c4 27. Qc2 Nc5 28. Rd1 f5 29. Ne1 e4 30. Qd2 Re7 31. Nc2 Rd7 32. Qc1 Qd8 33. Rxd7 Qxd7 34. Nfe3 Na4 35. Na3 b5 36. Nac2 a5 37. a3 Be5 38. Nd1 Nc5 39. Nde3 Na4 40. Nd1 Nc5 41. Nde3 g5 42. Nf1 f4 43. h4 Bf5 44. hxg5 hxg5 45. Qe1 {[%emt 2:07:06]} Nb3 {[%emt 2:17:43]} 46. Na1 {[%emt 0:00:30]} Nc5 {[%emt 0:00:30]} 47. Nc2 {[%emt 0:00:30]} Ne6 {[%emt 0:00:51]} 48. a4 {[%emt 0:01:32]} b4 {[%emt 0:02:32]} 49. cxb4 {[%emt 0:00:30]} Qxa4 {[%emt 0:00:30]} 50. Na3 {[%emt 0:00:00]} c3 {[%emt 0:00:00]} 51. bxc3 {[%emt 0:09:02]} axb4 {[%emt 0:00:00]} 52. cxb4 {[%emt 0:01:32]} Qxa3 {[%emt 0:00:24]} 53. Qb1 {[%emt 0:00:01]} Qb2 {[%emt 0:01:33]} 54. Qxb2 {[%emt 0:00:30]} Bxb2 {[%emt 0:00:30]} 55. gxf4 {[%emt 0:00:00]} gxf4 {[%emt 0:00:00]} 56. Nd2 {[%emt 0:00:00]} Ng5 {[%emt 0:01:42]} 57. b5 {[%emt 0:00:00]} Bd4 {[%emt 0:00:28]} 58. Nc4 {[%emt 0:00:07]} f3 {[%emt 0:00:00]} 59. exf3 {[%emt 0:00:14]} exf3 {[%emt 0:00:00]} 60. Bh1 {[%emt 0:00:00]} Bd3 {[%emt 0:00:30]} 61. Nd2 {[%emt 0:01:22]} Be2 {[%emt 0:00:15]} 62. Nf1 {[%emt 0:00:27]} Be5 {[%emt 0:00:46]} 63. Ng3 {[%emt 0:00:13]} Nh3+ {[%emt 0:00:54]} 64. Kh2 {[%emt 0:00:30]} Nxf2 {[%emt 0:00:00]} 0-1